{"text_format":"3","workbook":"xlsx","n_sheets":2,"sheets":["Raspored zaposlenih","Podešavanje"],"not_rendered":{"defined_names":21},"read":"whole","date_system":"1900"}

{"sheet":"Raspored zaposlenih","index":0,"n_rows":296,"n_cols":21,"rows_kept":296,"merged":[[6,1,6,9],[66,1,66,9],[126,1,126,9],[186,1,186,9],[246,1,246,9]]}
["Raspored smena zaposlenih"]
[]
[null,"UKUPNO:",null,{"$f":"SUM(4:4)","v":{"v":56,"d":"56.00"}}]
[null,"ČASOVA:",null,{"$f":"EmployeeDayHoursTotal","v":8},8,8,8,8,8,8,{"v":0,"d":"0.00"},{"v":0,"d":"0.00"},{"v":0,"d":"0.00"},{"v":0,"d":"0.00"},{"v":0,"d":"0.00"},{"v":0,"d":"0.00"},{"v":0,"d":"0.00"},{"v":0,"d":"0.00"},{"v":0,"d":"0.00"},{"v":0,"d":"0.00"},{"v":0,"d":"0.00"}]
[null,"ZAPOSLENI:",null,"Hadžić, J","Milić, B","Simić, A","Milić, B","Halilović, C","Karić, M","Rakić, A"]
[]
[null,"2012-07-16T09:00:00"]
[null,{"$f":"B7","v":41106.375},{"$nulls":5},"Odmor"]
[null,{"$f":"PeriodiDisplay","v":":15"},null,"Recepcija",{"$nulls":3},"Odmor"]
[null,":30",null,"Recepcija",{"$nulls":3},"Odmor"]
[null,":45",null,"Recepcija","Nadzornik",null,"Korisnička služba","Odmor"]
[null,"10:00 AM",null,"Recepcija","Nadzornik",null,"Korisnička služba","Odmor"]
[null,":15",null,"Recepcija","Nadzornik",null,"Korisnička služba","Odmor"]
[null,":30",null,"Recepcija","Nadzornik",null,"Korisnička služba","Odmor","Računovodstvo"]
[null,":45",null,"Recepcija","Nadzornik",null,"Korisnička služba","Odmor","Računovodstvo","Domar"]
[null,"11:00 AM",null,"Recepcija","Nadzornik",null,"Korisnička služba","Odmor","Računovodstvo","Domar"]
[null,":15",null,"Recepcija","Nadzornik","Vodič","Korisnička služba","Odmor","Računovodstvo","Domar"]
[null,":30",null,"Recepcija","Pauza","Vodič","Korisnička služba","Odmor","Računovodstvo","Domar"]
[null,":45",null,"Ručak","Nadzornik","Vodič","Korisnička služba","Odmor","Računovodstvo","Domar"]
[null,"12:00 PM",null,"Ručak","Nadzornik","Vodič","Korisnička služba","Odmor","Računovodstvo","Domar"]
[null,":15",null,"Recepcija","Nadzornik","Vodič","Korisnička služba","Odmor","Pauza","Domar"]
[null,":30",null,"Recepcija","Nadzornik","Pauza","Korisnička služba","Odmor","Telefoni","Pauza"]
[null,":45",null,"Recepcija","Nadzornik","Vodič","Korisnička služba","Odmor","Telefoni","Domar"]
[null,"1:00 PM",null,"Recepcija","Nadzornik","Vodič","Korisnička služba","Odmor","Telefoni","Domar"]
[null,":15",null,"Recepcija","Nadzornik","Vodič","Ručak","Odmor","Telefoni","Domar"]
[null,":30",null,null,"Nadzornik","Vodič","Ručak","Odmor","Telefoni","Domar"]
[null,":45",null,null,"Nadzornik","Vodič","Ručak","Odmor","Ručak","Domar"]
[null,"2:00 PM",null,"Blagajnik","Ručak","Vodič","Ručak","Odmor","Ručak","Domar"]
[null,":15",null,"Blagajnik","Ručak","Vodič","Korisnička služba","Odmor","Telefoni","Domar"]
[null,":30",null,"Blagajnik","Ručak","Ručak","Korisnička služba","Odmor","Telefoni","Ručak"]
[null,":45",null,"Blagajnik","Ručak","Ručak","Korisnička služba","Odmor","Telefoni","Ručak"]
[null,"3:00 PM",null,"Blagajnik","Obezbeđenje","Ručak","Korisnička služba","Odmor","Telefoni","Ručak"]
[null,":15",null,"Blagajnik","Obezbeđenje","Ručak","Korisnička služba","Odmor","Telefoni","Ručak"]
[null,":30",null,"Blagajnik","Obezbeđenje","Vodič","Korisnička služba","Odmor","Telefoni","Zatvaranje"]
[null,":45",null,"Blagajnik","Obezbeđenje","Vodič","Korisnička služba","Odmor","Telefoni","Zatvaranje"]
[null,"4:00 PM",null,"Blagajnik","Obezbeđenje","Vodič","Korisnička služba","Odmor","Pauza","Zatvaranje"]
[null,":15",null,"Pauza","Obezbeđenje","Vodič","Pauza","Odmor","Telefoni","Zatvaranje"]
[null,":30",null,"Blagajnik","Obezbeđenje","Vodič","Korisnička služba","Odmor","Telefoni","Zatvaranje"]
[null,":45",null,"Blagajnik","Obezbeđenje","Vodič","Korisnička služba","Odmor","Telefoni","Zatvaranje"]
[null,"5:00 PM",null,"Blagajnik","Obezbeđenje","Vodič","Korisnička služba",null,"Telefoni","Zatvaranje"]
[null,":15",null,"Blagajnik","Obezbeđenje","Vodič","Korisnička služba",null,"Telefoni","Zatvaranje"]
[null,":30",null,"Blagajnik","Obezbeđenje","Vodič","Korisnička služba",null,"Telefoni","Zatvaranje"]
[null,":45",null,"Blagajnik","Obezbeđenje","Vodič","Korisnička služba",null,"Telefoni","Zatvaranje"]
[null,"6:00 PM",null,"Blagajnik","Obezbeđenje","Vodič","Korisnička služba",null,"Telefoni","Zatvaranje"]
[null,":15",null,"Blagajnik","Obezbeđenje","Vodič","Korisnička služba",null,"Telefoni","Zatvaranje"]
[null,":30",null,null,"Obezbeđenje","Vodič","Korisnička služba",null,"Telefoni","Zatvaranje"]
[null,":45",null,null,"Obezbeđenje","Pauza","Korisnička služba",null,"Telefoni","Pauza"]
[null,"7:00 PM",{"$nulls":3},"Vodič",null,null,"Telefoni","Zatvaranje"]
[null,":15",{"$nulls":3},"Vodič",null,null,"Telefoni","Zatvaranje"]
[null,":30",{"$nulls":3},"Vodič",{"$nulls":3},"Zatvaranje"]
[null,":45",{"$nulls":3},"Vodič",{"$nulls":3},"Zatvaranje"]
[null,"8:00 PM",{"$nulls":3},"Vodič",{"$nulls":3},"Zatvaranje"]
[null,":15",{"$nulls":3},"Vodič"]
[null,":30",{"$nulls":3},"Vodič"]
[null,":45"]
[null,"9:00 PM"]
[]
[]
[]
[]
["Raspored zaposlenih"]
[]
[null,"UKUPNO:",null,{"$f":"SUM(64:64)","v":{"v":56,"d":"56.00"}}]
[null,"ČASOVA:",null,{"$f":"EmployeeDayHoursTotal","v":8},8,8,8,8,8,8,{"v":0,"d":"0.00"},{"v":0,"d":"0.00"},{"v":0,"d":"0.00"},{"v":0,"d":"0.00"},{"v":0,"d":"0.00"},{"v":0,"d":"0.00"},{"v":0,"d":"0.00"},{"v":0,"d":"0.00"},{"v":0,"d":"0.00"},{"v":0,"d":"0.00"},{"v":0,"d":"0.00"}]
[null,"ZAPOSLENI:",null,"Hadžić, J","Milić, B","Simić, A","Perić, D","Halilović, C","Karić, M","Rakić, A"]
[]
[null,{"$f":"B7+1","v":"2012-07-17T09:00:00"}]
[null,{"$f":"B67","v":41107.375},{"$nulls":5},"Odmor"]
[null,{"$f":"PeriodiDisplay","v":":15"},null,"Recepcija",{"$nulls":3},"Odmor"]
[null,":30",null,"Recepcija",{"$nulls":3},"Odmor"]
[null,":45",null,"Recepcija","Nadzornik",null,"Korisnička služba","Odmor"]
[null,"1:00 AM",null,"Recepcija","Nadzornik",null,"Korisnička služba","Odmor"]
[null,":15",null,"Recepcija","Nadzornik",null,"Korisnička služba","Odmor"]
[null,":30",null,"Recepcija","Nadzornik",null,"Korisnička služba","Odmor","Računovodstvo"]
[null,":45",null,"Recepcija","Nadzornik",null,"Korisnička služba","Odmor","Računovodstvo","Domar"]
[null,"2:00 AM",null,"Recepcija","Nadzornik",null,"Korisnička služba","Odmor","Računovodstvo","Domar"]
[null,":15",null,"Recepcija","Nadzornik","Vodič","Korisnička služba","Odmor","Računovodstvo","Domar"]
[null,":30",null,"Recepcija","Pauza","Vodič","Korisnička služba","Odmor","Računovodstvo","Domar"]
[null,":45",null,"Ručak","Nadzornik","Vodič","Korisnička služba","Odmor","Računovodstvo","Domar"]
[null,"3:00 AM",null,"Ručak","Nadzornik","Vodič","Korisnička služba","Odmor","Računovodstvo","Domar"]
[null,":15",null,"Recepcija","Nadzornik","Vodič","Korisnička služba","Odmor","Pauza","Domar"]
[null,":30",null,"Recepcija","Nadzornik","Pauza","Korisnička služba","Odmor","Telefoni","Pauza"]
[null,":45",null,"Recepcija","Nadzornik","Vodič","Korisnička služba","Odmor","Telefoni","Domar"]
[null,"4:00 AM",null,"Recepcija","Nadzornik","Vodič","Korisnička služba","Odmor","Telefoni","Domar"]
[null,":15",null,"Recepcija","Nadzornik","Vodič","Ručak","Odmor","Telefoni","Domar"]
[null,":30",null,null,"Nadzornik","Vodič","Ručak","Odmor","Telefoni","Domar"]
[null,":45",null,null,"Nadzornik","Vodič","Ručak","Odmor","Ručak","Domar"]
[null,"5:00 AM",null,"Blagajnik","Ručak","Vodič","Ručak","Odmor","Ručak","Domar"]
[null,":15",null,"Blagajnik","Ručak","Vodič","Korisnička služba","Odmor","Telefoni","Domar"]
[null,":30",null,"Blagajnik","Ručak","Ručak","Korisnička služba","Odmor","Telefoni","Ručak"]
[null,":45",null,"Blagajnik","Ručak","Ručak","Korisnička služba","Odmor","Telefoni","Ručak"]
[null,"6:00 AM",null,"Blagajnik","Obezbeđenje","Ručak","Korisnička služba","Odmor","Telefoni","Ručak"]
[null,":15",null,"Blagajnik","Obezbeđenje","Ručak","Korisnička služba","Odmor","Telefoni","Ručak"]
[null,":30",null,"Blagajnik","Obezbeđenje","Vodič","Korisnička služba","Odmor","Telefoni","Zatvaranje"]
[null,":45",null,"Blagajnik","Obezbeđenje","Vodič","Korisnička služba","Odmor","Telefoni","Zatvaranje"]
[null,"7:00 AM",null,"Blagajnik","Obezbeđenje","Vodič","Korisnička služba","Odmor","Pauza","Zatvaranje"]
[null,":15",null,"Pauza","Obezbeđenje","Vodič","Pauza","Odmor","Telefoni","Zatvaranje"]
[null,":30",null,"Blagajnik","Obezbeđenje","Vodič","Korisnička služba","Odmor","Telefoni","Zatvaranje"]
[null,":45",null,"Blagajnik","Obezbeđenje","Vodič","Korisnička služba","Odmor","Telefoni","Zatvaranje"]
[null,"8:00 AM",null,"Blagajnik","Obezbeđenje","Vodič","Korisnička služba",null,"Telefoni","Zatvaranje"]
[null,":15",null,"Blagajnik","Obezbeđenje","Vodič","Korisnička služba",null,"Telefoni","Zatvaranje"]
[null,":30",null,"Blagajnik","Obezbeđenje","Vodič","Korisnička služba",null,"Telefoni","Zatvaranje"]
[null,":45",null,"Blagajnik","Obezbeđenje","Vodič","Korisnička služba",null,"Telefoni","Zatvaranje"]
[null,"9:00 AM",null,"Blagajnik","Obezbeđenje","Vodič","Korisnička služba",null,"Telefoni","Zatvaranje"]
[null,":15",null,"Blagajnik","Obezbeđenje","Vodič","Korisnička služba",null,"Telefoni","Zatvaranje"]
[null,":30",null,null,"Obezbeđenje","Vodič","Korisnička služba",null,"Telefoni","Zatvaranje"]
[null,":45",null,null,"Obezbeđenje","Pauza","Korisnička služba",null,"Telefoni","Pauza"]
[null,"10:00 AM",{"$nulls":3},"Vodič",null,null,"Telefoni","Zatvaranje"]
[null,":15",{"$nulls":3},"Vodič",null,null,"Telefoni","Zatvaranje"]
[null,":30",{"$nulls":3},"Vodič",{"$nulls":3},"Zatvaranje"]
[null,":45",{"$nulls":3},"Vodič",{"$nulls":3},"Zatvaranje"]
[null,"11:00 AM",{"$nulls":3},"Vodič",{"$nulls":3},"Zatvaranje"]
[null,":15",{"$nulls":3},"Vodič"]
[null,":30",{"$nulls":3},"Vodič"]
[null,":45"]
[null,"12:00 PM"]
[]
[]
[]
[]
["Raspored zaposlenih"]
[]
[null,"UKUPNO:",null,{"$f":"SUM(124:124)","v":{"v":56,"d":"56.00"}}]
[null,"ČASOVA:",null,{"$f":"EmployeeDayHoursTotal","v":8},8,8,8,8,8,8,{"v":0,"d":"0.00"},{"v":0,"d":"0.00"},{"v":0,"d":"0.00"},{"v":0,"d":"0.00"},{"v":0,"d":"0.00"},{"v":0,"d":"0.00"},{"v":0,"d":"0.00"},{"v":0,"d":"0.00"},{"v":0,"d":"0.00"},{"v":0,"d":"0.00"},{"v":0,"d":"0.00"}]
[null,"ZAPOSLENI:",null,"Hadžić, J","Milić, B","Simić, A","Perić, D","Halilović, C","Karić, M","Rakić, A"]
[]
[null,{"$f":"B67+1","v":"2012-07-18T09:00:00"}]
[null,{"$f":"B127","v":41108.375},{"$nulls":5},"Odmor"]
[null,{"$f":"PeriodiDisplay","v":":15"},null,"Recepcija",{"$nulls":3},"Odmor"]
[null,":30",null,"Recepcija",{"$nulls":3},"Odmor"]
[null,":45",null,"Recepcija","Nadzornik",null,"Korisnička služba","Odmor"]
[null,"4:00 PM",null,"Recepcija","Nadzornik",null,"Korisnička služba","Odmor"]
[null,":15",null,"Recepcija","Nadzornik",null,"Korisnička služba","Odmor"]
[null,":30",null,"Recepcija","Nadzornik",null,"Korisnička služba","Odmor","Računovodstvo"]
[null,":45",null,"Recepcija","Nadzornik",null,"Korisnička služba","Odmor","Računovodstvo","Domar"]
[null,"5:00 PM",null,"Recepcija","Nadzornik",null,"Korisnička služba","Odmor","Računovodstvo","Domar"]
[null,":15",null,"Recepcija","Nadzornik","Vodič","Korisnička služba","Odmor","Računovodstvo","Domar"]
[null,":30",null,"Recepcija","Pauza","Vodič","Korisnička služba","Odmor","Računovodstvo","Domar"]
[null,":45",null,"Ručak","Nadzornik","Vodič","Korisnička služba","Odmor","Računovodstvo","Domar"]
[null,"6:00 PM",null,"Ručak","Nadzornik","Vodič","Korisnička služba","Odmor","Računovodstvo","Domar"]
[null,":15",null,"Recepcija","Nadzornik","Vodič","Korisnička služba","Odmor","Pauza","Domar"]
[null,":30",null,"Recepcija","Nadzornik","Pauza","Korisnička služba","Odmor","Telefoni","Pauza"]
[null,":45",null,"Recepcija","Nadzornik","Vodič","Korisnička služba","Odmor","Telefoni","Domar"]
[null,"7:00 PM",null,"Recepcija","Nadzornik","Vodič","Korisnička služba","Odmor","Telefoni","Domar"]
[null,":15",null,"Recepcija","Nadzornik","Vodič","Ručak","Odmor","Telefoni","Domar"]
[null,":30",null,null,"Nadzornik","Vodič","Ručak","Odmor","Telefoni","Domar"]
[null,":45",null,null,"Nadzornik","Vodič","Ručak","Odmor","Ručak","Domar"]
[null,"8:00 PM",null,"Blagajnik","Ručak","Vodič","Ručak","Odmor","Ručak","Domar"]
[null,":15",null,"Blagajnik","Ručak","Vodič","Korisnička služba","Odmor","Telefoni","Domar"]
[null,":30",null,"Blagajnik","Ručak","Ručak","Korisnička služba","Odmor","Telefoni","Ručak"]
[null,":45",null,"Blagajnik","Ručak","Ručak","Korisnička služba","Odmor","Telefoni","Ručak"]
[null,"9:00 PM",null,"Blagajnik","Obezbeđenje","Ručak","Korisnička služba","Odmor","Telefoni","Ručak"]
[null,":15",null,"Blagajnik","Obezbeđenje","Ručak","Korisnička služba","Odmor","Telefoni","Ručak"]
[null,":30",null,"Blagajnik","Obezbeđenje","Vodič","Korisnička služba","Odmor","Telefoni","Zatvaranje"]
[null,":45",null,"Blagajnik","Obezbeđenje","Vodič","Korisnička služba","Odmor","Telefoni","Zatvaranje"]
[null,"10:00 PM",null,"Blagajnik","Obezbeđenje","Vodič","Korisnička služba","Odmor","Pauza","Zatvaranje"]
[null,":15",null,"Pauza","Obezbeđenje","Vodič","Pauza","Odmor","Telefoni","Zatvaranje"]
[null,":30",null,"Blagajnik","Obezbeđenje","Vodič","Korisnička služba","Odmor","Telefoni","Zatvaranje"]
[null,":45",null,"Blagajnik","Obezbeđenje","Vodič","Korisnička služba","Odmor","Telefoni","Zatvaranje"]
[null,"11:00 PM",null,"Blagajnik","Obezbeđenje","Vodič","Korisnička služba",null,"Telefoni","Zatvaranje"]
[null,":15",null,"Blagajnik","Obezbeđenje","Vodič","Korisnička služba",null,"Telefoni","Zatvaranje"]
[null,":30",null,"Blagajnik","Obezbeđenje","Vodič","Korisnička služba",null,"Telefoni","Zatvaranje"]
[null,":45",null,"Blagajnik","Obezbeđenje","Vodič","Korisnička služba",null,"Telefoni","Zatvaranje"]
[null,"12:00 AM",null,"Blagajnik","Obezbeđenje","Vodič","Korisnička služba",null,"Telefoni","Zatvaranje"]
[null,":15",null,"Blagajnik","Obezbeđenje","Vodič","Korisnička služba",null,"Telefoni","Zatvaranje"]
[null,":30",null,null,"Obezbeđenje","Vodič","Korisnička služba",null,"Telefoni","Zatvaranje"]
[null,":45",null,null,"Obezbeđenje","Pauza","Korisnička služba",null,"Telefoni","Pauza"]
[null,"1:00 AM",{"$nulls":3},"Vodič",null,null,"Telefoni","Zatvaranje"]
[null,":15",{"$nulls":3},"Vodič",null,null,"Telefoni","Zatvaranje"]
[null,":30",{"$nulls":3},"Vodič",{"$nulls":3},"Zatvaranje"]
[null,":45",{"$nulls":3},"Vodič",{"$nulls":3},"Zatvaranje"]
[null,"2:00 AM",{"$nulls":3},"Vodič",{"$nulls":3},"Zatvaranje"]
[null,":15",{"$nulls":3},"Vodič"]
[null,":30",{"$nulls":3},"Vodič"]
[null,":45"]
[null,"3:00 AM"]
[]
[]
[]
[]
["Raspored zaposlenih"]
[]
[null,"UKUPNO:",null,{"$f":"SUM(184:184)","v":{"v":56,"d":"56.00"}}]
[null,"ČASOVA:",null,{"$f":"EmployeeDayHoursTotal","v":8},8,8,8,8,8,8,{"v":0,"d":"0.00"},{"v":0,"d":"0.00"},{"v":0,"d":"0.00"},{"v":0,"d":"0.00"},{"v":0,"d":"0.00"},{"v":0,"d":"0.00"},{"v":0,"d":"0.00"},{"v":0,"d":"0.00"},{"v":0,"d":"0.00"},{"v":0,"d":"0.00"},{"v":0,"d":"0.00"}]
[null,"ZAPOSLENI:",null,"Hadžić, J","Milić, B","Simić, A","Perić, D","Halilović, C","Karić, M","Rakić, A"]
[]
[null,{"$f":"B127+1","v":"2012-07-19T09:00:00"}]
[null,{"$f":"B187","v":41109.375},{"$nulls":5},"Odmor"]
[null,{"$f":"PeriodiDisplay","v":":15"},null,"Recepcija",{"$nulls":3},"Odmor"]
[null,":30",null,"Recepcija",{"$nulls":3},"Odmor"]
[null,":45",null,"Recepcija","Nadzornik",null,"Korisnička služba","Odmor"]
[null,"7:00 AM",null,"Recepcija","Nadzornik",null,"Korisnička služba","Odmor"]
[null,":15",null,"Recepcija","Nadzornik",null,"Korisnička služba","Odmor"]
[null,":30",null,"Recepcija","Nadzornik",null,"Korisnička služba","Odmor","Računovodstvo"]
[null,":45",null,"Recepcija","Nadzornik",null,"Korisnička služba","Odmor","Računovodstvo","Domar"]
[null,"8:00 AM",null,"Recepcija","Nadzornik",null,"Korisnička služba","Odmor","Računovodstvo","Domar"]
[null,":15",null,"Recepcija","Nadzornik","Vodič","Korisnička služba","Odmor","Računovodstvo","Domar"]
[null,":30",null,"Recepcija","Pauza","Vodič","Korisnička služba","Odmor","Računovodstvo","Domar"]
[null,":45",null,"Ručak","Nadzornik","Vodič","Korisnička služba","Odmor","Računovodstvo","Domar"]
[null,"9:00 AM",null,"Ručak","Nadzornik","Vodič","Korisnička služba","Odmor","Računovodstvo","Domar"]
[null,":15",null,"Recepcija","Nadzornik","Vodič","Korisnička služba","Odmor","Pauza","Domar"]
[null,":30",null,"Recepcija","Nadzornik","Pauza","Korisnička služba","Odmor","Telefoni","Pauza"]
[null,":45",null,"Recepcija","Nadzornik","Vodič","Korisnička služba","Odmor","Telefoni","Domar"]
[null,"10:00 AM",null,"Recepcija","Nadzornik","Vodič","Korisnička služba","Odmor","Telefoni","Domar"]
[null,":15",null,"Recepcija","Nadzornik","Vodič","Ručak","Odmor","Telefoni","Domar"]
[null,":30",null,null,"Nadzornik","Vodič","Ručak","Odmor","Telefoni","Domar"]
[null,":45",null,null,"Nadzornik","Vodič","Ručak","Odmor","Ručak","Domar"]
[null,"11:00 AM",null,"Blagajnik","Ručak","Vodič","Ručak","Odmor","Ručak","Domar"]
[null,":15",null,"Blagajnik","Ručak","Vodič","Korisnička služba","Odmor","Telefoni","Domar"]
[null,":30",null,"Blagajnik","Ručak","Ručak","Korisnička služba","Odmor","Telefoni","Ručak"]
[null,":45",null,"Blagajnik","Ručak","Ručak","Korisnička služba","Odmor","Telefoni","Ručak"]
[null,"12:00 PM",null,"Blagajnik","Obezbeđenje","Ručak","Korisnička služba","Odmor","Telefoni","Ručak"]
[null,":15",null,"Blagajnik","Obezbeđenje","Ručak","Korisnička služba","Odmor","Telefoni","Ručak"]
[null,":30",null,"Blagajnik","Obezbeđenje","Vodič","Korisnička služba","Odmor","Telefoni","Zatvaranje"]
[null,":45",null,"Blagajnik","Obezbeđenje","Vodič","Korisnička služba","Odmor","Telefoni","Zatvaranje"]
[null,"1:00 PM",null,"Blagajnik","Obezbeđenje","Vodič","Korisnička služba","Odmor","Pauza","Zatvaranje"]
[null,":15",null,"Pauza","Obezbeđenje","Vodič","Pauza","Odmor","Telefoni","Zatvaranje"]
[null,":30",null,"Blagajnik","Obezbeđenje","Vodič","Korisnička služba","Odmor","Telefoni","Zatvaranje"]
[null,":45",null,"Blagajnik","Obezbeđenje","Vodič","Korisnička služba","Odmor","Telefoni","Zatvaranje"]
[null,"2:00 PM",null,"Blagajnik","Obezbeđenje","Vodič","Korisnička služba",null,"Telefoni","Zatvaranje"]
[null,":15",null,"Blagajnik","Obezbeđenje","Vodič","Korisnička služba",null,"Telefoni","Zatvaranje"]
[null,":30",null,"Blagajnik","Obezbeđenje","Vodič","Korisnička služba",null,"Telefoni","Zatvaranje"]
[null,":45",null,"Blagajnik","Obezbeđenje","Vodič","Korisnička služba",null,"Telefoni","Zatvaranje"]
[null,"3:00 PM",null,"Blagajnik","Obezbeđenje","Vodič","Korisnička služba",null,"Telefoni","Zatvaranje"]
[null,":15",null,"Blagajnik","Obezbeđenje","Vodič","Korisnička služba",null,"Telefoni","Zatvaranje"]
[null,":30",null,null,"Obezbeđenje","Vodič","Korisnička služba",null,"Telefoni","Zatvaranje"]
[null,":45",null,null,"Obezbeđenje","Pauza","Korisnička služba",null,"Telefoni","Pauza"]
[null,"4:00 PM",{"$nulls":3},"Vodič",null,null,"Telefoni","Zatvaranje"]
[null,":15",{"$nulls":3},"Vodič",null,null,"Telefoni","Zatvaranje"]
[null,":30",{"$nulls":3},"Vodič",{"$nulls":3},"Zatvaranje"]
[null,":45",{"$nulls":3},"Vodič",{"$nulls":3},"Zatvaranje"]
[null,"5:00 PM",{"$nulls":3},"Vodič",{"$nulls":3},"Zatvaranje"]
[null,":15",{"$nulls":3},"Vodič"]
[null,":30",{"$nulls":3},"Vodič"]
[null,":45"]
[null,"6:00 PM"]
[]
[]
[]
[]
["Raspored zaposlenih"]
[]
[null,"UKUPNO:",null,{"$f":"SUM(244:244)","v":{"v":56,"d":"56.00"}}]
[null,"ČASOVA:",null,{"$f":"EmployeeDayHoursTotal","v":8},8,8,8,8,8,8,{"v":0,"d":"0.00"},{"v":0,"d":"0.00"},{"v":0,"d":"0.00"},{"v":0,"d":"0.00"},{"v":0,"d":"0.00"},{"v":0,"d":"0.00"},{"v":0,"d":"0.00"},{"v":0,"d":"0.00"},{"v":0,"d":"0.00"},{"v":0,"d":"0.00"},{"v":0,"d":"0.00"}]
[null,"ZAPOSLENI:",null,"Hadžić, J","Milić, B","Simić, A","Perić, D","Halilović, C","Karić, M","Rakić, A"]
[]
[null,{"$f":"B187+1","v":"2012-07-20T09:00:00"}]
[null,{"$f":"B247","v":41110.375},{"$nulls":5},"Odmor"]
[null,{"$f":"PeriodiDisplay","v":":15"},null,"Recepcija",{"$nulls":3},"Odmor"]
[null,":30",null,"Recepcija",{"$nulls":3},"Odmor"]
[null,":45",null,"Recepcija","Nadzornik",null,"Korisnička služba","Odmor"]
[null,"10:00 PM",null,"Recepcija","Nadzornik",null,"Korisnička služba","Odmor"]
[null,":15",null,"Recepcija","Nadzornik",null,"Korisnička služba","Odmor"]
[null,":30",null,"Recepcija","Nadzornik",null,"Korisnička služba","Odmor","Računovodstvo"]
[null,":45",null,"Recepcija","Nadzornik",null,"Korisnička služba","Odmor","Računovodstvo","Domar"]
[null,"11:00 PM",null,"Recepcija","Nadzornik",null,"Korisnička služba","Odmor","Računovodstvo","Domar"]
[null,":15",null,"Recepcija","Nadzornik","Vodič","Korisnička služba","Odmor","Računovodstvo","Domar"]
[null,":30",null,"Recepcija","Pauza","Vodič","Korisnička služba","Odmor","Računovodstvo","Domar"]
[null,":45",null,"Ručak","Nadzornik","Vodič","Korisnička služba","Odmor","Računovodstvo","Domar"]
[null,"12:00 AM",null,"Ručak","Nadzornik","Vodič","Korisnička služba","Odmor","Računovodstvo","Domar"]
[null,":15",null,"Recepcija","Nadzornik","Vodič","Korisnička služba","Odmor","Pauza","Domar"]
[null,":30",null,"Recepcija","Nadzornik","Pauza","Korisnička služba","Odmor","Telefoni","Pauza"]
[null,":45",null,"Recepcija","Nadzornik","Vodič","Korisnička služba","Odmor","Telefoni","Domar"]
[null,"1:00 AM",null,"Recepcija","Nadzornik","Vodič","Korisnička služba","Odmor","Telefoni","Domar"]
[null,":15",null,"Recepcija","Nadzornik","Vodič","Ručak","Odmor","Telefoni","Domar"]
[null,":30",null,null,"Nadzornik","Vodič","Ručak","Odmor","Telefoni","Domar"]
[null,":45",null,null,"Nadzornik","Vodič","Ručak","Odmor","Ručak","Domar"]
[null,"2:00 AM",null,"Blagajnik","Ručak","Vodič","Ručak","Odmor","Ručak","Domar"]
[null,":15",null,"Blagajnik","Ručak","Vodič","Korisnička služba","Odmor","Telefoni","Domar"]
[null,":30",null,"Blagajnik","Ručak","Ručak","Korisnička služba","Odmor","Telefoni","Ručak"]
[null,":45",null,"Blagajnik","Ručak","Ručak","Korisnička služba","Odmor","Telefoni","Ručak"]
[null,"3:00 AM",null,"Blagajnik","Obezbeđenje","Ručak","Korisnička služba","Odmor","Telefoni","Ručak"]
[null,":15",null,"Blagajnik","Obezbeđenje","Ručak","Korisnička služba","Odmor","Telefoni","Ručak"]
[null,":30",null,"Blagajnik","Obezbeđenje","Vodič","Korisnička služba","Odmor","Telefoni","Zatvaranje"]
[null,":45",null,"Blagajnik","Obezbeđenje","Vodič","Korisnička služba","Odmor","Telefoni","Zatvaranje"]
[null,"4:00 AM",null,"Blagajnik","Obezbeđenje","Vodič","Korisnička služba","Odmor","Pauza","Zatvaranje"]
[null,":15",null,"Pauza","Obezbeđenje","Vodič","Pauza","Odmor","Telefoni","Zatvaranje"]
[null,":30",null,"Blagajnik","Obezbeđenje","Vodič","Korisnička služba","Odmor","Telefoni","Zatvaranje"]
[null,":45",null,"Blagajnik","Obezbeđenje","Vodič","Korisnička služba","Odmor","Telefoni","Zatvaranje"]
[null,"5:00 AM",null,"Blagajnik","Obezbeđenje","Vodič","Korisnička služba",null,"Telefoni","Zatvaranje"]
[null,":15",null,"Blagajnik","Obezbeđenje","Vodič","Korisnička služba",null,"Telefoni","Zatvaranje"]
[null,":30",null,"Blagajnik","Obezbeđenje","Vodič","Korisnička služba",null,"Telefoni","Zatvaranje"]
[null,":45",null,"Blagajnik","Obezbeđenje","Vodič","Korisnička služba",null,"Telefoni","Zatvaranje"]
[null,"6:00 AM",null,"Blagajnik","Obezbeđenje","Vodič","Korisnička služba",null,"Telefoni","Zatvaranje"]
[null,":15",null,"Blagajnik","Obezbeđenje","Vodič","Korisnička služba",null,"Telefoni","Zatvaranje"]
[null,":30",null,null,"Obezbeđenje","Vodič","Korisnička služba",null,"Telefoni","Zatvaranje"]
[null,":45",null,null,"Obezbeđenje","Pauza","Korisnička služba",null,"Telefoni","Pauza"]
[null,"7:00 AM",{"$nulls":3},"Vodič",null,null,"Telefoni","Zatvaranje"]
[null,":15",{"$nulls":3},"Vodič",null,null,"Telefoni","Zatvaranje"]
[null,":30",{"$nulls":3},"Vodič",{"$nulls":3},"Zatvaranje"]
[null,":45",{"$nulls":3},"Vodič",{"$nulls":3},"Zatvaranje"]
[null,"8:00 AM",{"$nulls":3},"Vodič",{"$nulls":3},"Zatvaranje"]
[null,":15",{"$nulls":3},"Vodič"]
[null,":30",{"$nulls":3},"Vodič"]
[null,":45"]
[null,"9:00 AM"]

{"sheet":"Podešavanje","index":1,"n_rows":26,"n_cols":7,"rows_kept":26}
[null,"Podešavanje"]
[]
[]
[null,"POVEĆANJA PO UNOSU ČASA",4]
[]
[]
[]
[]
[]
[null,"Zaposleni",null,"Pozicija/odsustvo","Boja","Plaćeno","Ceo dan"]
[null,"Hadžić, J",null,"Ručak",1,false,false]
[null,"Halilović, C",null,"Pauza",1,false,false]
[null,"Karić, M",null,"Odsutan",1,false,true]
[null,"Lević, D",null,"Bolestan",1,false,true]
[null,"Milić, B",null,"Lični dan",1,true,true]
[null,"Perić, D",null,"Odmor",1,true,true]
[null,"Rakić, A",null,"Recepcija",2,true,false]
[null,"Simić, A",null,"Blagajnik",3,true,false]
[{"$nulls":3},"Nadzornik",4,true,false]
[{"$nulls":3},"Vodič",5,true,false]
[{"$nulls":3},"Korisnička služba",6,true,false]
[{"$nulls":3},"Telefoni",7,true,false]
[{"$nulls":3},"Obezbeđenje",8,true,false]
[{"$nulls":3},"Domar",9,true,false]
[{"$nulls":3},"Računovodstvo",10,true,false]
[{"$nulls":3},"Zatvaranje",11,true,false]